Cogmind - Beta 14 @@@ ROGUE MODE // 2025.04.18 @ 23:13:01 Player: jumpy Result: Self-destructed Performance ------------- Evolutions (3) 1500 Regions Visited (5) 1000 Robots Destroyed (11) 55 Value Destroyed (171) 171 Prototype IDs (1) 20 Alien Tech Used (0) 0 Bonus (81) 81 TOTAL SCORE: 2827 Bonus ------- Follower Combat Kills 81 Cogmind --------- Core Integrity 700/700 Matter 191/300 Energy 125/125 System Corruption 0% Temperature Cool (0) Movement Flying (31) Location -7/Factory Parts ------- > --- POWER (1) -------- Light Ion Engine > --- PROPULSION (4) --- Improved Flight Unit Improved Flight Unit Improved Flight Unit Improved Flight Unit > --- UTILITY (6) ------ Medium Storage Unit Seismic Detector Improved Light Armor Plating > --- WEAPON (2) ------- Medium Laser > --- INVENTORY (10) --- Light Ion Engine Light Ion Engine Deuterium Engine Deuterium Engine Wheel Compact Wheel Seismic Detector Improved Light Armor Plating Peak State ------------ > --- POWER ------------ Ion Engine > --- PROPULSION ------- Improved Flight Unit Improved Flight Unit Improved Flight Unit Improved Flight Unit > --- UTILITY ---------- Medium Storage Unit Seismic Detector Improved Light Armor Plating > --- WEAPON ----------- Light Assault Rifle > --- INVENTORY -------- Light Ion Engine Deuterium Engine Deuterium Engine Wheel Compact Wheel Seismic Detector Improved Light Armor Plating Medium Laser Light Cannon [Rating: 20] Favorites ----------- Power Ion Engine Engine Ion Engine Propulsion Improved Flight Unit Leg Aluminum Leg Flight Unit Improved Flight Unit Utility Seismic Detector Device Seismic Detector Storage Small Storage Unit Protection Improved Light Armor Plating Weapon Light Assault Rifle Energy Gun Medium Laser Ballistic Gun Light Assault Rifle Ballistic Cannon Light Cannon Build | -11 -10 -10 -9 -8 -7 ------- Run | Yrd Mat Min Mat Mat Fac Slots Evolved 6 | . . . 2 2 2 Power . | . . . . . . Propulsion 2 | . . . 2 . . Utility 4 | . . . . 2 2 Weapon . | . . . . . . Parts Attached 18 | 7 2 . 4 5 . Power 4 | 1 . . . 3 . Engine 4 | 1 . . . 3 . Core . | . . . . . . Reactor . | . . . . . . Propulsion 6 | 2 2 . 2 . . Treads . | . . . . . . Leg 2 | 2 . . . . . Wheel . | . . . . . . Hover . | . . . . . . Flight 4 | . 2 . 2 . . Utility 4 | 2 . . 1 1 . Device 1 | 1 . . . . . Storage 2 | 1 . . 1 . . Processor . | . . . . . . Hackware . | . . . . . . Protection 1 | . . . . 1 . Artifact . | . . . . . . Weapon 4 | 2 . . 1 1 . Energy Gun 2 | 1 . . . 1 . Energy Cannon . | . . . . . . Ballistic Gun 1 | 1 . . . . . Ballistic Cannon 1 | . . . 1 . . Launcher . | . . . . . . Special Weapon . | . . . . . . Impact Weapon . | . . . . . . Slashing Weapon . | . . . . . . Piercing Weapon . | . . . . . . Special Melee Weapon . | . . . . . . Unidentified Prototypes 1 | . 1 . . . . Parts Lost 3 | . . . . 3 . Power 2 | . . . . 2 . Propulsion . | . . . . . . Utility . | . . . . . . Weapon 1 | . . . . 1 . Highest Loss Streak 2 | . . . . 2 . To Critical Strikes . | . . . . . . Average Slot Usage (%) 86 | . 96 85 98 80 69 Engine 11 | . 14 14 11 8 7 Leg 1 | . 8 . . . . Flight 31 | . 19 28 44 36 30 Device 11 | . 14 14 11 9 7 Storage 11 | . 14 14 11 9 7 Protection 3 | . . . . 9 7 Energy Gun 3 | . 10 . . 3 7 Ballistic Gun 9 | . 14 14 11 5 . Ballistic Cannon 1 | . . . 9 . . Peak Build Rating 20 | 7 12 11 18 20 20 Average Rating 13 | 5 10 11 17 19 20 On Entrance 11 | . 7 11 11 18 20 Naked Turns . | . . . . . . Heaviest Build 20 | 14 14 12 20 20 19 Greatest Support 20 | 20 20 10 20 20 20 Greatest Overweight (x) 1 | . 1 1 . . . Average Overweight (x) . | . . 1 . . . Largest Inventory Capacity 10 | 8 8 8 10 10 10 Average Capacity 8 | 7 8 8 9 10 10 Most Carried 10 | 4 8 8 9 10 8 Average Carried 6 | 1 6 8 6 8 8 Final Capacity 10 | 8 8 8 10 10 10 Final Carried 9 | 4 8 8 9 8 8 Class Distribution -------------------- 52% | Mutant 47% | Sprinter Dominant Class ---------------- Mutant | -10/Materials Mutant | -10/Mines Sprinter | -9/Materials Sprinter | -8/Materials Sprinter | -7/Factory Resources | -11 -10 -10 -9 -8 -7 ----------- Run | Yrd Mat Min Mat Mat Fac Matter Collected 316 | 182 . 45 32 57 . Remotely . | . . . . . . Salvage Created 233 | 43 27 . 64 99 . Parts 29 | 8 3 . 7 11 . Haulers Intercepted . | . . . . . . Recyclers Shooed . | . . . . . . Parts Field Recycled . | . . . . . . Retrieved Matter . | . . . . . . Parts Self-Destructed . | . . . . . . Prevented . | . . . . . . Kills | -11 -10 -10 -9 -8 -7 ------- Run | Yrd Mat Min Mat Mat Fac Combat Hostiles Destroyed 8 | . . . 3 5 . Guns 7 | . . . 2 5 . Cannons 1 | . . . 1 . . Classes Destroyed 4 | 1 1 . 2 . . Tunneler 2 | 2 . . . . . Watcher 1 | . 1 . . . . Swarmer 6 | . . . 2 4 . Grunt 2 | . . . 1 1 . Best Kill Streak 4 | 1 1 . 2 4 . Combat Bots Only 4 | . . . 2 4 . Max Kills in Single Turn 1 | 1 1 . 1 1 . Gunslinging . | . . . . . . Exploded . | . . . . . . Melee . | . . . . . . Uniques/NPCs Destroyed . | . . . . . . Combat | -11 -10 -10 -9 -8 -7 -------- Run | Yrd Mat Min Mat Mat Fac Hostile Shots Fired 80 | . . 6 23 49 2 Missed 20 | . . . 8 11 1 Damage Taken 682 | . . 53 149 470 10 Core 112 | . . 20 24 68 . Absorbed by Shields 4 | . . . . . 4 Core Remaining (%) 93 | 100 . 92 94 87 . Volleys Fired 37 | 5 2 . 8 22 . Largest 2 | 2 2 . 2 1 . Hottest 70 | 70 70 . 55 50 . Shots Fired 52 | 10 4 . 16 22 . Gun 44 | 10 4 . 8 22 . Cannon 8 | . . . 8 . . Launcher . | . . . . . . Special . | . . . . . . Kinetic 36 | 5 2 . 16 13 . Thermal 16 | 5 2 . . 9 . Explosive . | . . . . . . Electromagnetic . | . . . . . . Robot Hit Streak 11 | 4 3 . 4 11 . Robot Miss Streak 5 | 1 1 . 5 3 . Penetration Max . | . . . . . . Secondary Targets . | . . . . . . Shots Hit Robots 33 | 6 3 . 7 17 . Core Hits 17 | 2 2 . 3 10 . Critical Kills . | . . . . . . Critical Parts Destroyed . | . . . . . . Critical Strikes . | . . . . . . Melee Attacks . | . . . . . . Impact . | . . . . . . Slashing . | . . . . . . Piercing . | . . . . . . Sneak Attacks . | . . . . . . Combat Hostiles . | . . . . . . Follow-up Attacks . | . . . . . . Damage Inflicted 368 | 59 26 . 98 185 . Guns 298 | 59 26 . 28 185 . Cannons 70 | . . . 70 . . Explosions . | . . . . . . Melee . | . . . . . . Ramming . | . . . . . . Kinetic 201 | 21 13 . 98 69 . Thermal 167 | 38 13 . . 116 . Explosive . | . . . . . . Electromagnetic . | . . . . . . Impact . | . . . . . . Slashing . | . . . . . . Piercing . | . . . . . . Highest Corruption . | . . . . . . Average Corruption . | . . . . . . Corruption Purged . | . . . . . . Corruption Blocked . | . . . . . . Overload Shots . | . . . . . . Overflow Damage . | . . . . . . Projectiles . | . . . . . . Explosions . | . . . . . . Melee . | . . . . . . Knockbacks 2 | . . . 2 . . Impact . | . . . . . . Kinetic 2 | . . . 2 . . Secondary . | . . . . . . Self-Inflicted Damage . | . . . . . . Shots . | . . . . . . Rammed . | . . . . . . Targets Rammed . | . . . . . . Kicked . | . . . . . . Crushed . | . . . . . . Highest Temperature 96 | 40 50 . 38 96 . Average Temperature 27 | 20 28 . 19 37 . Received Heat Transfer 78 | . . 15 12 45 6 Siege Activations . | . . . . . . Robots Corrupted . | . . . . . . Combat Hostiles . | . . . . . . Parts Fried . | . . . . . . Impact Corruptions . | . . . . . . Robots Melted . | . . . . . . Combat Hostiles . | . . . . . . Parts Melted 1 | . . . . 1 . Heat Transferred 481 | 111 37 . . 333 . Parts Sabotaged . | . . . . . . Parts Stolen . | . . . . . . Parts Stripped . | . . . . . . Power Chain Reactions . | . . . . . . Alert | -11 -10 -10 -9 -8 -7 ------- Run | Yrd Mat Min Mat Mat Fac Peak Influence 312 | 10 28 155 196 312 193 Initial 141 | . 6 10 60 82 141 Average 94 | 5 16 25 124 212 176 Maximum Alert Level 1 | . . . . 1 . Low Security (%) 83 | 100 100 100 100 31 100 Level 1 16 | . . . . 68 . Level 2 . | . . . . . . Level 3 . | . . . . . . Level 4 . | . . . . . . Level 5 . | . . . . . . High Security . | . . . . . . Max Security . | . . . . . . Squads Dispatched 3 | . 1 . 1 . 1 Investigation . | . . . . . . Extermination . | . . . . . . Reinforcement 3 | . 1 . 1 . 1 Assault . | . . . . . . Garrison . | . . . . . . Intercept . | . . . . . . Searches Triggered . | . . . . . . Construction Impeded . | . . . . . . Haulers Reinforced . | . . . . . . Active Scanning Responses . | . . . . . . Cargo Convoy Interrupts . | . . . . . . Stealth | -11 -10 -10 -9 -8 -7 --------- Run | Yrd Mat Min Mat Mat Fac Distress Signals 4 | . . . 2 1 1 Communications Jammed . | . . . . . . Distress Signals . | . . . . . . Times Spotted 37 | . 1 5 9 13 9 Peak Tracking Total 8 | . 2 5 6 5 8 Tactical Retreats 4 | . . . 2 2 . Traps | -11 -10 -10 -9 -8 -7 ------- Run | Yrd Mat Min Mat Mat Fac Traps Triggered 3 | . . . . 1 2 Indirectly . | . . . . . . Trap Hack Attempts . | . . . . . . Triggered . | . . . . . . Disarmed . | . . . . . . Reprogrammed . | . . . . . . Reused . | . . . . . . Traps Extracted . | . . . . . . Installed . | . . . . . . Triggered . | . . . . . . Machines | -11 -10 -10 -9 -8 -7 ---------- Run | Yrd Mat Min Mat Mat Fac Machines Disabled . | . . . . . . Max in Single Turn . | . . . . . . Garrison Access 1 | . . . . 1 . Machines Repaired . | . . . . . . Machines Dismantled . | . . . . . . Machines Sabotaged . | . . . . . . Overloaded Fab Kills . | . . . . . . Hacking | -11 -10 -10 -9 -8 -7 --------- Run | Yrd Mat Min Mat Mat Fac Machines Accessed 2 | . . . . 1 1 Terminals . | . . . . . . Fabricators . | . . . . . . Repair Stations . | . . . . . . Recycling Units . | . . . . . . Scanalyzers 1 | . . . . . 1 Garrison Access 1 | . . . . 1 . Total Hacks 4 | . . . . 1 3 Successful 3 | . . . . 1 2 Failed 1 | . . . . . 1 Catastrophic . | . . . . . . Database Lockouts . | . . . . . . Manual . | . . . . . . Terminals . | . . . . . . Fabricators . | . . . . . . Repair Stations . | . . . . . . Recycling Units . | . . . . . . Scanalyzers 3 | . . . . . 3 Garrison Access 1 | . . . . 1 . Terminal Hacks . | . . . . . . Fabricator Hacks . | . . . . . . Repair Station Hacks . | . . . . . . Recycling Unit Hacks . | . . . . . . Scanalyzer 2 | . . . . . 2 Insert Component 1 | . . . . . 1 Analyze 1 | . . . . . 1 Garrison Access Hacks 1 | . . . . 1 . Seal Access 1 | . . . . 1 . Unauthorized Hacks . | . . . . . . Terminals . | . . . . . . Fabricators . | . . . . . . Repair Stations . | . . . . . . Recycling Units . | . . . . . . Scanalyzers . | . . . . . . Garrison Access . | . . . . . . Data Cores Recovered . | . . . . . . Used . | . . . . . . Hacking Detections 1 | . . . . . 1 Full Trace Events . | . . . . . . Feedback Events . | . . . . . . Feedback Blocked . | . . . . . . Robot Schematics Acquired . | . . . . . . Robots Built . | . . . . . . Authchips . | . . . . . . Time . | . . . . . . Total Robot Build Rating . | . . . . . . Part Schematics Acquired 1 | . . . . . 1 Parts Built . | . . . . . . Authchips . | . . . . . . Time . | . . . . . . Total Part Build Rating . | . . . . . . Parts Repaired . | . . . . . . Time . | . . . . . . Parts Recycled . | . . . . . . Recycled Matter . | . . . . . . Retrieved Matter . | . . . . . . Retrieved Components . | . . . . . . Parts Scanalyzed 1 | . . . . . 1 Part Schematics Acquired 1 | . . . . . 1 Parts Damaged . | . . . . . . Bothacking | -11 -10 -10 -9 -8 -7 ------------ Run | Yrd Mat Min Mat Mat Fac Used RIF Installer . | . . . . . . Robots Hacked . | . . . . . . Non-combat . | . . . . . . Combat . | . . . . . . Robot Hacks Applied . | . . . . . . Relay Couplers Released . | . . . . . . Fabnet Peak Effective % . | . . . . . . Robots Rewired . | . . . . . . Allies Hacked . | . . . . . . Hacks Repelled . | . . . . . . Allies | -11 -10 -10 -9 -8 -7 -------- Run | Yrd Mat Min Mat Mat Fac Total Allies 3 | . . 3 . . . Largest Group 3 | . . 3 . . . Highest-Rated Group 40 | . . 40 . . . Highest-Rated Ally 16 | . . 16 . . . Total Orders . | . . . . . . Ally Attacks 18 | . . 18 . . . Total Damage 200 | . . 200 . . . Kills 5 | . . 5 . . . Allies Corrupted . | . . . . . . Allies Melted . | . . . . . . Intel | -11 -10 -10 -9 -8 -7 ------- Run | Yrd Mat Min Mat Mat Fac Robot Analysis Total . | . . . . . . Derelict Logs Recovered 2 | . . 2 . . . Drone Launches . | . . . . . . Drone Recoveries . | . . . . . . Exploration | -11 -10 -10 -9 -8 -7 ------------- Run | Yrd Mat Min Mat Mat Fac Turns Passed 901 | 147 121 201 138 217 77 Spaces Moved 1123 | 103 97 183 273 362 105 Core 6 | 6 . . . . . Treads . | . . . . . . Legs 119 | 97 22 . . . . Wheels . | . . . . . . Hover . | . . . . . . Flight 998 | . 75 183 273 362 105 Fastest Speed 31 | 50 107 107 31 31 31 Average Speed 57 | 115 109 107 31 31 31 Slowest Speed 120 | 120 120 107 31 31 31 Overloaded Moves . | . . . . . . Propulsion Burnouts . | . . . . . . Robots Hopped 17 | . . . 5 12 . Cave-ins Triggered . | . . . . . . Exploration Rate (%) 24 | 6 27 48 32 33 3 Regions Visited 5 Branch Regions 1 Pre-discovered Areas . | . . . . . . Known Exits Taken . | . . . . . . Unknown Exits Taken 5 | 1 1 1 1 1 . Scrap Searched 1 | . . 1 . . . Spaces Dug . | . . . . . . Terrain Destroyed . | . . . . . . Melee . | . . . . . . Projectile . | . . . . . . AOE . | . . . . . . Terrain Rammed . | . . . . . . Walls Destroyed . | . . . . . . Machines Disabled . | . . . . . . Actions | -11 -10 -10 -9 -8 -7 --------- Run | Yrd Mat Min Mat Mat Fac Total 1304 | 118 108 188 306 435 149 Wait 96 | . . 6 22 54 14 Move 1085 | 102 96 182 262 338 105 Hop 16 | . . . 5 11 . Pick Up 15 | 4 5 . 4 2 . Fast Attach 8 | 7 . . . 1 . Attach 7 | . 1 . 3 3 . Detach 2 | . 1 . . 1 . Swap 3 | . 1 . 1 1 . Drop 5 | . 2 . 1 2 . Fire 37 | 5 2 . 8 22 . Melee . | . . . . . . Ram . | . . . . . . Kick . | . . . . . . Crush . | . . . . . . Escape Stasis 30 | . . . . . 30 Rewire . | . . . . . . Trap . | . . . . . . Miscellaneous . | . . . . . . Route ------- -11/Scrapyard -10/Materials -10/Mines -9/Materials -8/Materials -7/Factory History --------- Turn | Location | Event 3 | -11/Scrapyard | Discovered new exit (range 14) 148 | -11/Scrapyard | Entered Materials 253 | -10/Materials | Discovered new exit (range 16) 269 | -10/Materials | Entered Mines 309 | -10/Mines | Assisted by bots powering up and referring to "LRC-V3" 312 | -10/Mines | Build established: Mutant 375 | -10/Mines | Learned Materials interactive machine intel 393 | -10/Mines | Learned 2 Materials zone layouts 403 | -10/Mines | Discovered new exit (range 7) 470 | -10/Mines | Entered Materials 470 | -9/Materials | Evolved 2 slots: Propulsion x2 472 | -9/Materials | Loaded intel: 18 interactive machine locations 606 | -9/Materials | Discovered new exit (range 7) 608 | -9/Materials | Entered another Materials area 608 | -8/Materials | Evolved 2 slots: Utility x2 777 | -8/Materials | Build established: Sprinter 820 | -8/Materials | Discovered new exit (range 16) 825 | -8/Materials | Entered Factory 825 | -7/Factory | Evolved 2 slots: Utility x2 902 | -7/Factory | Self-destructed Last Messages --------------- 00890_ Triggered Stasis Trap. 00890_ A bubble of rippling energy engulfs the area. 00890_ Field strength at 95. 00890_ Field strength at 90. 00891_ O-24 Administrator sends out distress signal. 00891_ O-24 Administrator uses terminal to summon reinforcements. 00891_ ALERT: Hostiles spotted, dispatching reinforcements to Terminal F004. 00891_ O-24 Administrator locks terminal. 00891_ Field strength at 85. 00892_ Field strength at 80. 00893_ Field strength at 75. 00894_ Field strength at 70. 00895_ Field strength at 65. 00896_ Field strength at 60. 00897_ Field strength at 55. 00898_ Field strength at 50. 00899_ Field strength at 45. 00900_ Field strength at 40. 00901_ Field strength at 31. Map ----- +----------------------------------------------------+ | ?????????????????????????????????????? | | ?????????????????????????????????????? | | ?????????????????????????????????????? | | ?????????????????????????????????????? | | ?????????????????????????????????????? | | ?????????????????????????????????????? | | ?????????????????????????????????????? | | ?????????????????????????????????????? | | ?????????????????????????????????????? | | ?????????????????????????????????????? | | ?????????????????????????????????????? | | ?????????????????????????????????????? | | ?????????????????????????????????????? | | ?????????????????????????????????????? | | ?????????????????????????????????????? | | ?????????????????????????????????????? | | ?????????????????????????????????????? | | ?????????????????????????????????????? | | ????????????########?????????????????? | | ????????????# """T""????????????????? | | ????????????# ^o ????????????????? | | ????????????# g ???????????????? | | ????????????+ """ """???????????????? | | ????????????# """ """ ??????????????? | | ????????????# """ """ #???????????? | | ??#########?#@ gg g #???????????? | | ??# ! ?# """ """ g #???????????? | | ??# # """ """ !#####???????? | | ??# # g""" """ ????????? | | ??# + g #???????????? | | ??# """ # #???????????? | | ??# !! """ # ####+#########?????? | | ?????!! """?# #? #?????? | | ?????!! ?# #? #?????? | | ??????####??# # = #?????? | | ????????????# g# #?????? | | ??########### + + "???? | | ??# # # #?????? | | ??#""" = # # #?????? | | ??#""" # #?! #?????? | | ??#"S # t #? #?????? | | ??#""" """ # #?? #?????? | | ??# "" """ # ^ #?? #?????? | | ??# """ + #??? #?????? | | ??# # #???#########??????? | | ??########### #??????????????????? | | ???# # #??????????????????? | | ???# # #??????????????????? | | ???# # #??????????????????? | | ???# # #??????????????????? | +----------------------------------------------------+ Best States ------------- Heat Dissipation 34 Energy Generation 10 Energy Capacity 250 Matter Stores 230 Matter Capacity 300 Sight Range 16 Terrain Scan Density 10 Armor Coverage 150 Evasion (%) 63 Item Schematics ----------------- Imp. Light Armor Plating | -7/Factory | Scanalyzed Robot Schematics ------------------ None Fabricated ------------ Nothing Alien Tech Used ----------------- None Achievements -------------- None Challenges ------------ None Game ------ Seed RingDimensionalWartreads Manual? 0 Play Time 00:11:25 Cumulative 28.2 hours Start 2025.04.18 @ 19:53:58 End 2025.04.18 @ 23:13:01 Sessions 3 Manual Loads 0 Difficulty Rogue Special Mode None Game No. 92 Rogue 92 Adventurer 0 Explorer 0 Win Type - Total 0 Types 0/0/0/0/0/0/0/0/0 Lore% 9 Gallery% 30 Achievement% 26 Wizard Run 0 Options --------- Layout 0 ASCII 0 Keyboard 0 Movement Numpad Keybinds 0 Fullscreen 2 Font 18/Terminus Map View 76x50 Zoom Use 0% Tactical HUD 1 Map Filters NONE Filters NONE Steam 1 RUN: c078e255-669d-4b0a-8b09-c8df84747fcf